Cogmind - Beta 14 @@@ ROGUE MODE // 2025.01.16 @ 03:19:20 Player: Nikolayag Result: Destroyed by G-34 Mercenary with Small Laser Performance ------------- Evolutions (0) 0 Regions Visited (2) 400 Robots Destroyed (12) 60 Value Destroyed (233) 233 Prototype IDs (0) 0 Alien Tech Used (0) 0 Bonus (0) 0 TOTAL SCORE: 693 Bonus ------- None Cogmind --------- Core Integrity 0/250 Matter 209/300 Energy 158/160 System Corruption 0% Temperature Cool (29) Movement Rolling (80) Location -10/Mines Parts ------- > --- POWER (1) -------- Light Nuclear Core > --- PROPULSION (2) --- Wheel Wheel > --- UTILITY (2) ------ Medium Storage Unit > --- WEAPON (2) ------- Light Assault Rifle Light Assault Rifle > --- INVENTORY (10) --- Light Treads Light Treads Peak State ------------ > --- POWER ------------ Light Nuclear Core > --- PROPULSION ------- Wheel Wheel > --- UTILITY ---------- Medium Storage Unit > --- WEAPON ----------- Light Assault Rifle Light Assault Rifle > --- INVENTORY -------- Light Treads Light Treads [Rating: 8] Favorites ----------- Power Ion Engine Engine Ion Engine Power Core Light Nuclear Core Propulsion Light Treads Treads Light Treads Wheel Wheel Utility Medium Storage Unit Storage Medium Storage Unit Weapon Light Assault Rifle Ballistic Gun Light Assault Rifle Build | -11 -10 -10 ------- Run | Yrd Mat Min Slots Evolved . | . . . Power . | . . . Propulsion . | . . . Utility . | . . . Weapon . | . . . Parts Attached 14 | 6 2 6 Power 3 | 1 1 1 Engine 2 | 1 1 . Core 1 | . . 1 Reactor . | . . . Propulsion 4 | 2 . 2 Treads 2 | 2 . . Leg . | . . . Wheel 2 | . . 2 Hover . | . . . Flight . | . . . Utility 2 | 1 1 . Device . | . . . Storage 2 | 1 1 . Processor . | . . . Hackware . | . . . Protection . | . . . Artifact . | . . . Weapon 5 | 2 . 3 Energy Gun . | . . . Energy Cannon . | . . . Ballistic Gun 5 | 2 . 3 Ballistic Cannon . | . . . Launcher . | . . . Special Weapon . | . . . Impact Weapon . | . . . Slashing Weapon . | . . . Piercing Weapon . | . . . Special Melee Weapon . | . . . Unidentified Prototypes . | . . . Parts Lost 7 | . 1 6 Power 2 | . 1 1 Propulsion 2 | . . 2 Utility . | . . . Weapon 3 | . . 3 Highest Loss Streak 6 | . 1 6 To Critical Strikes . | . . . Average Slot Usage (%) 82 | . 84 74 Engine 12 | . 13 9 Treads 25 | . 28 18 Wheel 2 | . . 9 Storage 14 | . 14 14 Ballistic Gun 26 | . 28 21 Peak Build Rating 8 | 6 7 8 Average Rating 5 | 4 6 5 On Entrance 4 | . 6 7 Naked Turns . | . . . Heaviest Build 18 | 13 18 18 Greatest Support 40 | 40 40 40 Greatest Overweight (x) . | . . . Average Overweight (x) . | . . . Largest Inventory Capacity 10 | 8 10 10 Average Capacity 9 | 7 9 10 Most Carried 8 | 4 8 8 Average Carried 5 | 1 6 6 Final Capacity 10 | 8 10 10 Final Carried 8 | 4 8 2 Class Distribution -------------------- 100% | Mutant Dominant Class ---------------- Mutant | -10/Materials Mutant | -10/Mines Resources | -11 -10 -10 ----------- Run | Yrd Mat Min Matter Collected 390 | 62 328 . Remotely . | . . . Salvage Created 434 | . 434 . Parts 23 | . 23 . Haulers Intercepted 2 | . 2 . Recyclers Shooed 2 | . 2 . Parts Field Recycled . | . . . Retrieved Matter . | . . . Parts Self-Destructed . | . . . Prevented . | . . . Kills | -11 -10 -10 ------- Run | Yrd Mat Min Combat Hostiles Destroyed 9 | . 9 . Guns 9 | . 9 . Classes Destroyed 4 | . 4 . Hauler 2 | . 2 . Recycler 1 | . 1 . Swarmer 4 | . 4 . Grunt 5 | . 5 . Best Kill Streak 4 | . 4 . Combat Bots Only 3 | . 3 . Max Kills in Single Turn 1 | . 1 . Gunslinging . | . . . Exploded . | . . . Melee . | . . . Uniques/NPCs Destroyed . | . . . Combat | -11 -10 -10 -------- Run | Yrd Mat Min Hostile Shots Fired 79 | . 57 22 Missed 16 | . 13 3 Damage Taken 1109 | . 461 648 Core 257 | . 76 181 Absorbed by Shields . | . . . Core Remaining (%) 100 | 100 . . Volleys Fired 45 | . 41 4 Largest 2 | . 2 2 Hottest 40 | . 40 40 Shots Fired 90 | . 82 8 Gun 90 | . 82 8 Cannon . | . . . Launcher . | . . . Special . | . . . Kinetic 90 | . 82 8 Thermal . | . . . Explosive . | . . . Electromagnetic . | . . . Robot Hit Streak 7 | . 7 2 Robot Miss Streak 5 | . 5 3 Penetration Max . | . . . Secondary Targets 1 | . 1 . Max Gunslinging Chain 1 | . 1 . Shots Hit Robots 49 | . 46 3 Core Hits 25 | . 22 3 Critical Kills . | . . . Critical Parts Destroyed . | . . . Critical Strikes . | . . . Melee Attacks . | . . . Impact . | . . . Slashing . | . . . Piercing . | . . . Sneak Attacks . | . . . Combat Hostiles . | . . . Follow-up Attacks . | . . . Damage Inflicted 521 | . 491 30 Guns 521 | . 491 30 Cannons . | . . . Explosions . | . . . Melee . | . . . Ramming . | . . . Kinetic 521 | . 491 30 Thermal . | . . . Explosive . | . . . Electromagnetic . | . . . Impact . | . . . Slashing . | . . . Piercing . | . . . Highest Corruption . | . . . Average Corruption . | . . . Corruption Purged . | . . . Corruption Blocked . | . . . Overload Shots . | . . . Overflow Damage . | . . . Projectiles . | . . . Explosions . | . . . Melee . | . . . Knockbacks . | . . . Impact . | . . . Kinetic . | . . . Secondary . | . . . Self-Inflicted Damage . | . . . Shots . | . . . Rammed . | . . . Targets Rammed . | . . . Kicked . | . . . Crushed . | . . . Highest Temperature 23 | . 18 23 Average Temperature 10 | . 8 17 Received Heat Transfer 144 | . 123 21 Siege Activations . | . . . Robots Corrupted . | . . . Combat Hostiles . | . . . Parts Fried . | . . . Impact Corruptions . | . . . Robots Melted . | . . . Combat Hostiles . | . . . Parts Melted . | . . . Heat Transferred . | . . . Parts Sabotaged . | . . . Parts Stolen . | . . . Parts Stripped . | . . . Power Chain Reactions . | . . . Alert | -11 -10 -10 ------- Run | Yrd Mat Min Peak Influence 310 | . 310 42 Initial 42 | . . 42 Average 95 | . 133 26 Maximum Alert Level 1 | . 1 . Low Security (%) 73 | 100 60 100 Level 1 26 | . 39 . Level 2 . | . . . Level 3 . | . . . Level 4 . | . . . Level 5 . | . . . High Security . | . . . Max Security . | . . . Squads Dispatched 2 | . 2 . Investigation 1 | . 1 . Extermination . | . . . Reinforcement 1 | . 1 . Assault . | . . . Garrison . | . . . Intercept . | . . . Searches Triggered . | . . . Construction Impeded . | . . . Haulers Reinforced . | . . . Active Scanning Responses . | . . . Cargo Convoy Interrupts . | . . . Stealth | -11 -10 -10 --------- Run | Yrd Mat Min Distress Signals 2 | . 2 . Communications Jammed . | . . . Distress Signals . | . . . Times Spotted 33 | . 20 13 Peak Tracking Total 12 | . 5 12 Tactical Retreats 3 | . 2 1 Traps | -11 -10 -10 ------- Run | Yrd Mat Min Traps Triggered 3 | . 3 . Indirectly . | . . . Trap Hack Attempts . | . . . Triggered . | . . . Disarmed . | . . . Reprogrammed . | . . . Reused . | . . . Traps Extracted . | . . . Installed . | . . . Triggered . | . . . Machines | -11 -10 -10 ---------- Run | Yrd Mat Min Machines Disabled . | . . . Max in Single Turn . | . . . Machines Repaired . | . . . Machines Dismantled . | . . . Machines Sabotaged . | . . . Overloaded Fab Kills . | . . . Hacking | -11 -10 -10 --------- Run | Yrd Mat Min Machines Accessed 1 | . . 1 Terminals . | . . . Fabricators . | . . . Repair Stations . | . . . Recycling Units . | . . . Scanalyzers . | . . . Garrison Access . | . . . Total Hacks 1 | . . 1 Successful 1 | . . 1 Failed . | . . . Catastrophic . | . . . Database Lockouts . | . . . Manual . | . . . Terminals . | . . . Fabricators . | . . . Repair Stations . | . . . Recycling Units . | . . . Scanalyzers . | . . . Garrison Access . | . . . Terminal Hacks 1 | . . 1 Open Door 1 | . . 1 Fabricator Hacks . | . . . Repair Station Hacks . | . . . Recycling Unit Hacks . | . . . Scanalyzer . | . . . Garrison Access Hacks . | . . . Unauthorized Hacks . | . . . Terminals . | . . . Fabricators . | . . . Repair Stations . | . . . Recycling Units . | . . . Scanalyzers . | . . . Garrison Access . | . . . Data Cores Recovered . | . . . Used . | . . . Hacking Detections . | . . . Full Trace Events . | . . . Feedback Events . | . . . Feedback Blocked . | . . . Robot Schematics Acquired . | . . . Robots Built . | . . . Authchips . | . . . Time . | . . . Total Robot Build Rating . | . . . Part Schematics Acquired . | . . . Parts Built . | . . . Authchips . | . . . Time . | . . . Total Part Build Rating . | . . . Parts Repaired . | . . . Time . | . . . Parts Recycled . | . . . Recycled Matter . | . . . Retrieved Matter . | . . . Retrieved Components . | . . . Parts Scanalyzed . | . . . Part Schematics Acquired . | . . . Parts Damaged . | . . . Bothacking | -11 -10 -10 ------------ Run | Yrd Mat Min Used RIF Installer . | . . . Robots Hacked . | . . . Non-combat . | . . . Combat . | . . . Robot Hacks Applied . | . . . Relay Couplers Released . | . . . Fabnet Peak Effective % . | . . . Robots Rewired . | . . . Allies Hacked . | . . . Hacks Repelled . | . . . Allies | -11 -10 -10 -------- Run | Yrd Mat Min Total Allies . | . . . Largest Group . | . . . Highest-Rated Group . | . . . Highest-Rated Ally . | . . . Total Orders . | . . . Ally Attacks . | . . . Total Damage . | . . . Kills . | . . . Allies Corrupted . | . . . Allies Melted . | . . . Intel | -11 -10 -10 ------- Run | Yrd Mat Min Robot Analysis Total . | . . . Derelict Logs Recovered . | . . . Drone Launches . | . . . Drone Recoveries . | . . . Exploration | -11 -10 -10 ------------- Run | Yrd Mat Min Turns Passed 625 | 83 424 118 Spaces Moved 298 | 46 175 77 Core 3 | 3 . . Treads 262 | 43 175 44 Legs . | . . . Wheels 33 | . . 33 Hover . | . . . Flight . | . . . Fastest Speed 50 | 50 160 80 Average Speed 150 | 152 160 125 Slowest Speed 160 | 160 160 160 Overloaded Moves . | . . . Propulsion Burnouts . | . . . Robots Hopped . | . . . Cave-ins Triggered . | . . . Exploration Rate (%) 30 | 3 54 34 Regions Visited 2 Branch Regions 1 Pre-discovered Areas . | . . . Known Exits Taken . | . . . Unknown Exits Taken 2 | 1 1 . Scrap Searched . | . . . Spaces Dug . | . . . Terrain Destroyed . | . . . Melee . | . . . Projectile . | . . . AOE . | . . . Terrain Rammed . | . . . Walls Destroyed . | . . . Machines Disabled . | . . . Actions | -11 -10 -10 --------- Run | Yrd Mat Min Total 394 | 56 246 92 Wait 27 | . 22 5 Move 296 | 45 174 77 Hop . | . . . Pick Up 10 | 5 5 . Fast Attach 6 | 5 1 . Attach 8 | 1 1 6 Detach 1 | . 1 . Swap . | . . . Drop 1 | . 1 . Fire 45 | . 41 4 Melee . | . . . Ram . | . . . Kick . | . . . Crush . | . . . Escape Stasis . | . . . Rewire . | . . . Trap . | . . . Miscellaneous . | . . . Route ------- -11/Scrapyard -10/Materials -10/Mines History --------- Turn | Location | Event 2 | -11/Scrapyard | Met Revision 17 6 | -11/Scrapyard | Discovered new exit (range 14) 84 | -11/Scrapyard | Entered Materials 305 | -10/Materials | Build established: Mutant 478 | -10/Materials | Discovered new exit (range 15) 508 | -10/Materials | Entered Mines 549 | -10/Mines | Assembled infested the area 564 | -10/Mines | Found the Drone Emporium 585 | -10/Mines | Core integrity fell below 50% 594 | -10/Mines | Core integrity fell below 20% 605 | -10/Mines | Received a Rocket Launcher from a helpful Derelict 618 | -10/Mines | Lost 6 parts (1p2n3w) 626 | -10/Mines | Destroyed by G-34 Mercenary with Small Laser Last Messages --------------- 00591_ as-97267 destroyed. 00592_ The unstable cave ceiling collapses. 00594_ as-30893 suffers critical hit (Burn). 00594_ as-30893 destroyed. 00595_ as-56761 destroyed. 00596_ as-90947 destroyed. 00596_ as-63303 destroyed. 00599_ A derelict emerges from the shadows. 00600_ YI-V7A(g): "Some of my friends down here think you need a mining laser when you travel the depths." 00601_ YI-V7A(g): "You know what I say? NO!" 00602_ YI-V7A(g): "Everyone knows a good old rocket launcher goes a long way." 00603_ YI-V7A(g): "Need to get rid of a swarm? Done. Need a big hole in the wall? Done." 00604_ YI-V7A(g): "Need a small hole in the wall? Leave that to the mining laser wimps, I say!" 00605_ YI-V7A(g): "Would you like a rocket launcher? I know I would if I were you, so I'm going to lend you mine." 00605_ YI-V7A(g) slips back into the shadows. Map ----- +----------------------------------------------------+ | ?## #### ## ##### #??????? | | ??# ##?# ### ##????????????? | | ??## #?# #?######?????????????? | | ???## #?# ????????????????????? | | ???# # ####????????????????????? | | ????#% ## #??????????????????????? | | ???" ??# ### #??????????????????????? | | ?? ????### #?## ##??????????????????????? | | ?????#?## #???###???????????????????????? | | ??????? ?# # ##?????????????????????????????? | | ???????? ?#### #??????????????????????????????? | | ??????????# ???# #?????####?????????????????????? | | ??????????# ??## ##???# #????????????????????? | | ?????????## ### ##?# ????????????????????? | | ????????## ## ???????????????????? | | ????????# ???????????????????? | | ????????# ## ???????????????????? | | ????????## ] ##?????????????????????????? | | ?????????# ##???? ?????????????????? | | ?????????## ## #???????????????????? | | ??????????### #???????????????????? | | ????????????## #???????????????????? | | ?????????????## ##### #????????????????????? | | ??????????????### ##########????????????????????? | | ????????????????# #????????????????????? | | ????????????????# @ #????????????????????? | | ????????????????##########gg#????????????????????? | | ?????????????????????????# #????????????????????? | | ????????????????????????? #????????????????????? | | ????????????????????????? #????????????????????? | | ???????????????????????? ????????????????????? | | ???????????????????????? ???????????????????? | | ??????????????????????? ???????????????????? | | ??????????????????????? ??????????????????? | | ?????????????????????? ?????????????????? | | ?????????????????????? ?????????????????? | | ????????????????????? ## ????????????????? | | ?????????????????????###??# ????????????????? | | ??????????????????????????? ###????????????????? | | ??????????????????????????? #??????????????????? | | ??????????????????????????? #??????????????????? | | ??????????????????????????? ????????????????????? | | ?????????????????????????????????????????????????? | | ?????????????????????????????????????????????????? | | ?????????????????????????????????????????????????? | | ?????????????????????????????????????????????????? | | ?????????????????????????????????????????????????? | | ?????????????????????????????????????????????????? | | ?????????????????????????????????????????????????? | | ?????????????????????????????????????????????????? | +----------------------------------------------------+ Best States ------------- Heat Dissipation 25 Energy Generation 14 Energy Capacity 250 Matter Stores 251 Matter Capacity 300 Sight Range 16 Terrain Scan Density 10 Evasion (%) 44 Recoil Reduction 2 Item Schematics ----------------- None Robot Schematics ------------------ None Fabricated ------------ Nothing Alien Tech Used ----------------- None Achievements -------------- None Challenges ------------ None Game ------ Seed ReactionMobileTorch Manual? 0 Play Time 00:06:01 Cumulative 357.7 hours Start 2025.01.16 @ 03:14:38 End 2025.01.16 @ 03:19:20 Sessions 1 Manual Loads 0 Difficulty Rogue Special Mode None Game No. 208 Rogue 208 Adventurer 0 Explorer 0 Win Type - Total 12 Types 7/1/0/2/0/1/1/0/0 Lore% 49 Gallery% 76 Achievement% 79 Wizard Run 0 Options --------- Layout 0 ASCII 0 Keyboard 1 Movement Numpad Keybinds 0 Fullscreen 2 Font 18/SmallcapsGlow Map View 76x50 Zoom Use 0% Tactical HUD 1 Map Filters NONE Filters NONE Steam 1 RUN: a1db909b-add8-4609-a635-d77e6e5ff891